fUSD/lending_fUSD_20260531
["ID","MTS","AMOUNT","RATE_DAILY","PERIOD"]
[423533376,1780199443000,-892.92,0.00014999,2]
[423533380,1780199443000,-892.92,0.00014999,2]
[423533382,1780199443000,-892.92,0.00014999,2]
[423533385,1780199443000,-892.92,0.00014999,2]
[423533372,1780199443000,-500.0,0.00014999,2]
[423533397,1780199443000,-1062.48,0.00014999,2]
[423533396,1780199443000,-1062.48,0.00014999,2]
[423533387,1780199443000,-892.92,0.00014999,2]
[423533394,1780199443000,-1062.48,0.00014999,2]
[423533390,1780199443000,-1242.35,0.00014999,2]
[423533392,1780199443000,-1242.35,0.00014999,2]
[423533388,1780199443000,-892.92,0.00014999,2]
[423533393,1780199443000,-1242.35,0.00014999,2]
[423533384,1780199443000,-892.92,0.00014999,2]
[423533389,1780199443000,-893.094766,0.00014999,2]
[423533391,1780199443000,-1242.35,0.00014999,2]
[423533386,1780199443000,-892.92,0.00014999,2]
[423533395,1780199443000,-1062.48,0.00014999,2]
[423533467,1780199444000,-649.601898,0.00016438,2]
[423533479,1780199444000,-2576.227454,0.00016438,2]
[423533470,1780199444000,-649.601898,0.00016438,2]
[423533469,1780199444000,-649.601898,0.00016438,2]
[423533463,1780199444000,-649.601898,0.00016438,2]
[423533459,1780199444000,-1045.5,0.00016438,2]
[423533464,1780199444000,-649.601898,0.00016438,2]
[423533466,1780199444000,-649.601898,0.00016438,2]
[423533458,1780199444000,-308.12090886,0.00016437,2]
[423533465,1780199444000,-649.601898,0.00016438,2]
[423533468,1780199444000,-649.601898,0.00016438,2]
[423533461,1780199444000,-649.601898,0.00016438,2]
[423533471,1780199444000,-649.601898,0.00016438,2]
[423533481,1780199444000,-2576.227454,0.00016438,2]
[423533472,1780199444000,-649.601898,0.00016438,2]
[423533476,1780199444000,-2576.227454,0.00016438,2]
[423533474,1780199444000,-649.601898,0.00016438,2]
[423533473,1780199444000,-649.601898,0.00016438,2]
[423533477,1780199444000,-2576.227454,0.00016438,2]
[423533478,1780199444000,-2576.227454,0.00016438,2]
[423533480,1780199444000,-2576.227454,0.00016438,2]
[423533485,1780199444000,-2576.227454,0.00016438,2]
[423533482,1780199444000,-2576.227454,0.00016438,2]
[423533483,1780199444000,-2576.227454,0.00016438,2]
[423533488,1780199444000,-2576.227454,0.00016438,2]
[423533484,1780199444000,-2576.227454,0.00016438,2]
[423533462,1780199444000,-649.601898,0.00016438,2]
[423533475,1780199444000,-649.601898,0.00016438,2]
[423533460,1780199444000,-649.601898,0.00016438,2]
[423533431,1780199444000,-489.165112,0.00015068,2]
[423533450,1780199444000,-480.87,0.000159,2]
[423533432,1780199444000,-489.165112,0.00015068,2]
[423533487,1780199444000,-2576.227454,0.00016438,2]
[423533429,1780199444000,-489.165112,0.00015068,2]
[423533430,1780199444000,-489.165112,0.00015068,2]
[423533436,1780199444000,-489.165112,0.00015068,2]
[423533433,1780199444000,-489.165112,0.00015068,2]
[423533434,1780199444000,-489.165112,0.00015068,2]
[423533435,1780199444000,-489.165112,0.00015068,2]
[423533444,1780199444000,-27738.92981498,0.00015577,2]
[423533437,1780199444000,-489.165112,0.00015068,2]
[423533441,1780199444000,-489.165112,0.00015068,2]
[423533442,1780199444000,-489.165112,0.00015068,2]
[423533440,1780199444000,-489.165112,0.00015068,2]
[423533439,1780199444000,-489.165112,0.00015068,2]
[423533438,1780199444000,-489.165112,0.00015068,2]
[423533443,1780199444000,-500.0,0.0001521,2]
[423533446,1780199444000,-300.0,0.00015615,2]
[423533449,1780199444000,-500.0,0.00015851,2]
[423533455,1780199444000,-160.03,0.00016312,2]
[423533454,1780199444000,-500.0,0.00016125,2]
[423533447,1780199444000,-160.03,0.00015685,2]
[423533451,1780199444000,-778.64982,0.00016,2]
[423533453,1780199444000,-1256.0,0.00016067,2]
[423533456,1780199444000,-500.0,0.00016399,2]
[423533445,1780199444000,-500.0,0.00015589,2]
[423533452,1780199444000,-300.0,0.00016,2]
[423533448,1780199444000,-1641.0,0.00015776,2]
[423533457,1780199444000,-300.0,0.00016437,2]
[423533492,1780199444000,-9603.6,0.00016474,2]
[423533491,1780199444000,-2576.227454,0.00016438,2]
[423533486,1780199444000,-2576.227454,0.00016438,2]
[423533522,1780199444000,-1208.20134932,0.00018,2]
[423533524,1780199444000,-350.0,0.00018,2]
[423533525,1780199444000,-1802.96564414,0.000181,2]
[423533526,1780199444000,-1045.5,0.0001841,2]
[423533520,1780199444000,-547.49,0.0001793,2]
[423533521,1780199444000,-238.90847261,0.00018,2]
[423533523,1780199444000,-480.87,0.00018,2]
[423533528,1780199444000,-300.0,0.00018498,2]
[423533533,1780199444000,-518.22084681,0.00018738,2]
[423533531,1780199444000,-1384.67,0.0001872,2]
[423533532,1780199444000,-597.85,0.0001872,2]
[423533535,1780199444000,-1000.0,0.00018775,2]
[423533542,1780199444000,-151.0,0.00019153,2]
[423533527,1780199444000,-27738.92981498,0.00018468,2]
[423533543,1780199444000,-151.0,0.00019153,2]
[423533540,1780199444000,-1066.24170865,0.00019,2]
[423533537,1780199444000,-300.0,0.00018999,2]
[423533539,1780199444000,-5239.34559602,0.00019,2]
[423533538,1780199444000,-495.80006798,0.00019,2]
[423533541,1780199444000,-101004.92523113,0.00019,2]
[423533545,1780199444000,-151.0,0.00019153,2]
[423533544,1780199444000,-151.0,0.00019153,2]
[423533546,1780199444000,-151.0,0.00019153,2]
[423533549,1780199444000,-151.0,0.00019153,2]
[423533548,1780199444000,-2080.17592889,0.00019153,2]
[423533550,1780199444000,-151.0,0.00019153,2]
[423533489,1780199444000,-2576.227454,0.00016438,2]
[423533547,1780199444000,-151.0,0.00019153,2]
[423533536,1780199444000,-500.0,0.00018776,2]
[423533518,1780199444000,-793.55267586,0.000177,2]
[423533534,1780199444000,-500.0,0.0001874,2]
[423533529,1780199444000,-26897.0,0.00018587,2]
[423533530,1780199444000,-1264.08,0.0001872,2]
[423533494,1780199444000,-13071.60934838,0.000165,2]
[423533504,1780199444000,-1242.35,0.00016533,2]
[423533495,1780199444000,-1000.0,0.000165,2]
[423533503,1780199444000,-1242.35,0.00016533,2]
[423533493,1780199444000,-6619.23715763,0.000165,2]
[423533498,1780199444000,-509.97,0.00016533,2]
[423533497,1780199444000,-509.97,0.00016533,2]
[423533499,1780199444000,-509.97,0.00016533,2]
[423533496,1780199444000,-509.97,0.00016533,2]
[423533500,1780199444000,-510.14706201,0.00016533,2]
[423533502,1780199444000,-1242.35,0.00016533,2]
[423533501,1780199444000,-1242.35,0.00016533,2]
[423533505,1780199444000,-1242.36530613,0.00016533,2]
[423533490,1780199444000,-2576.227454,0.00016438,2]
[423533511,1780199444000,-500.0,0.00016673,2]
[423533509,1780199444000,-1062.48,0.00016533,2]
[423533515,1780199444000,-160.03,0.0001694,2]
[423533514,1780199444000,-877.55975484,0.0001686,2]
[423533516,1780199444000,-167.0,0.00016947,2]
[423533512,1780199444000,-364.4,0.00016767,2]
[423533506,1780199444000,-1062.48,0.00016533,2]
[423533519,1780199444000,-1240.14156078,0.0001789,2]
[423533510,1780199444000,-1062.48737673,0.00016533,2]
[423533508,1780199444000,-1062.48,0.00016533,2]
[423533513,1780199444000,-555.70477392,0.0001685,2]
[423533507,1780199444000,-1062.48,0.00016533,2]
[423533517,1780199444000,-360.57871464,0.000174,2]
[423533594,1780199445000,-221.043836,0.00019178,2]
[423533588,1780199445000,-221.043836,0.00019178,2]
[423533590,1780199445000,-221.043836,0.00019178,2]
[423533582,1780199445000,-221.043836,0.00019178,2]
[423533586,1780199445000,-221.043836,0.00019178,2]
[423533587,1780199445000,-221.043836,0.00019178,2]
[423533584,1780199445000,-221.043836,0.00019178,2]
[423533589,1780199445000,-221.043836,0.00019178,2]
[423533585,1780199445000,-221.043836,0.00019178,2]
[423533591,1780199445000,-221.043836,0.00019178,2]
[423533604,1780199445000,-872.472464,0.00019178,2]
[423533592,1780199445000,-221.043836,0.00019178,2]
[423533593,1780199445000,-221.043836,0.00019178,2]
[423533600,1780199445000,-872.472464,0.00019178,2]
[423533599,1780199445000,-872.472464,0.00019178,2]
[423533596,1780199445000,-872.472464,0.00019178,2]
[423533603,1780199445000,-872.472464,0.00019178,2]
[423533595,1780199445000,-872.472464,0.00019178,2]
[423533609,1780199445000,-872.472464,0.00019178,2]
[423533601,1780199445000,-872.472464,0.00019178,2]
[423533598,1780199445000,-872.472464,0.00019178,2]
[423533602,1780199445000,-872.472464,0.00019178,2]
[423533605,1780199445000,-872.472464,0.00019178,2]
[423533608,1780199445000,-872.472464,0.00019178,2]
[423533607,1780199445000,-872.472464,0.00019178,2]
[423533583,1780199445000,-221.043836,0.00019178,2]
[423533597,1780199445000,-872.472464,0.00019178,2]
[423533575,1780199445000,-518.696371,0.00019178,2]
[423533555,1780199445000,-151.0,0.00019153,2]
[423533576,1780199445000,-518.696371,0.00019178,2]
[423533606,1780199445000,-872.472464,0.00019178,2]
[423533553,1780199445000,-151.0,0.00019153,2]
[423533551,1780199445000,-151.0,0.00019153,2]
[423533554,1780199445000,-151.0,0.00019153,2]
[423533552,1780199445000,-151.0,0.00019153,2]
[423533556,1780199445000,-151.0,0.00019153,2]
[423533558,1780199445000,-151.0,0.00019153,2]
[423533567,1780199445000,-518.696371,0.00019178,2]
[423533560,1780199445000,-151.0,0.00019153,2]
[423533559,1780199445000,-151.0,0.00019153,2]
[423533557,1780199445000,-151.0,0.00019153,2]
[423533563,1780199445000,-518.696371,0.00019178,2]
[423533566,1780199445000,-518.696371,0.00019178,2]
[423533578,1780199445000,-518.696371,0.00019178,2]
[423533564,1780199445000,-518.696371,0.00019178,2]
[423533565,1780199445000,-518.696371,0.00019178,2]
[423533562,1780199445000,-151.0,0.00019153,2]
[423533569,1780199445000,-518.696371,0.00019178,2]
[423533581,1780199445000,-221.043836,0.00019178,2]
[423533579,1780199445000,-221.043836,0.00019178,2]
[423533573,1780199445000,-518.696371,0.00019178,2]
[423533571,1780199445000,-518.696371,0.00019178,2]
[423533572,1780199445000,-518.696371,0.00019178,2]
[423533580,1780199445000,-221.043836,0.00019178,2]
[423533570,1780199445000,-518.696371,0.00019178,2]
[423533568,1780199445000,-518.696371,0.00019178,2]
[423533574,1780199445000,-518.696371,0.00019178,2]
[423533577,1780199445000,-518.696371,0.00019178,2]
[423533561,1780199445000,-151.0,0.00019153,2]
[423533616,1780199445000,-500.0,0.00019339,2]
[423533622,1780199445000,-500.0,0.00019919,2]
[423533610,1780199445000,-872.472464,0.00019178,2]
[423533650,1780199445000,-500.0,0.00020521,2]
[423533645,1780199445000,-197.0,0.0002,2]
[423533649,1780199445000,-500.0,0.00020517,2]
[423533647,1780199445000,-2236.95670847,0.00020249,2]
[423533651,1780199445000,-2319.72410669,0.00020797,2]
[423533652,1780199445000,-191.34,0.000208,2]
[423533648,1780199445000,-1045.5,0.00020381,2]
[423533655,1780199445000,-189.0,0.00021,2]
[423533653,1780199445000,-156.0,0.00021,2]
[423533646,1780199445000,-480.87,0.000202,2]
[423533657,1780199445000,-151.0,0.00021,2]
[423533661,1780199445000,-190.0,0.00021,2]
[423533658,1780199445000,-151.0,0.00021,2]
[423533665,1780199445000,-437.0,0.00021,2]
[423533659,1780199445000,-669.0,0.00021,2]
[423533667,1780199445000,-500.0,0.00021132,2]
[423533656,1780199445000,-161.0,0.00021,2]
[423533662,1780199445000,-286.0,0.00021,2]
[423533664,1780199445000,-472.0,0.00021,2]
[423533663,1780199445000,-154.0,0.00021,2]
[423533615,1780199445000,-202.951765,0.00019178,2]
[423533666,1780199445000,-197.0,0.00021,2]
[423533669,1780199445000,-364.4,0.00021205,2]
[423533671,1780199445000,-151.0,0.00021553,2]
[423533670,1780199445000,-2405.55389863,0.00021345,2]
[423533672,1780199445000,-151.0,0.00021749,2]
[423533668,1780199445000,-1669.00052443,0.00021144,2]
[423533643,1780199445000,-11959.05,0.0002,2]
[423533654,1780199445000,-424.0,0.00021,2]
[423533660,1780199445000,-265.0,0.00021,2]
[423533637,1780199445000,-190.0,0.0002,2]
[423533644,1780199445000,-437.0,0.0002,2]
[423533611,1780199445000,-151.0,0.00019178,2]
[423533617,1780199445000,-9999.99,0.00019339,2]
[423533613,1780199445000,-151.0,0.00019178,2]
[423533614,1780199445000,-151.0,0.00019178,2]
[423533618,1780199445000,-150.99,0.00019339,2]
[423533619,1780199445000,-206.11,0.00019339,7]
[423533629,1780199445000,-161.0,0.0002,2]
[423533620,1780199445000,-9999.99,0.00019339,2]
[423533621,1780199445000,-2157.14243826,0.00019701,2]
[423533624,1780199445000,-722.0,0.0002,2]
[423533623,1780199445000,-9603.6,0.00019968,2]
[423533625,1780199445000,-4840.4663565,0.0002,2]
[423533626,1780199445000,-156.0,0.0002,2]
[423533612,1780199445000,-151.0,0.00019178,2]
[423533628,1780199445000,-189.0,0.0002,2]
[423533635,1780199445000,-218.498769,0.0002,2]
[423533627,1780199445000,-424.0,0.0002,2]
[423533636,1780199445000,-400.0,0.0002,2]
[423533639,1780199445000,-1066.0,0.0002,2]
[423533640,1780199445000,-154.0,0.0002,2]
[423533641,1780199445000,-811.0,0.0002,2]
[423533638,1780199445000,-286.0,0.0002,2]
[423533633,1780199445000,-218.498777,0.0002,2]
[423533632,1780199445000,-218.498777,0.0002,2]
[423533631,1780199445000,-265.0,0.0002,2]
[423533634,1780199445000,-218.498777,0.0002,2]
[423533630,1780199445000,-669.0,0.0002,2]
[423533642,1780199445000,-472.0,0.0002,2]
[423533718,1780199446000,-450.0,0.00022,2]
[423533722,1780199446000,-160.44985901,0.00022,2]
[423533711,1780199446000,-189.0,0.00022,2]
[423533717,1780199446000,-265.0,0.00022,2]
[423533706,1780199446000,-156.0,0.00022,2]
[423533703,1780199446000,-1546.0,0.00021968,2]
[423533715,1780199446000,-669.0,0.00022,2]
[423533709,1780199446000,-424.0,0.00022,2]
[423533721,1780199446000,-190.0,0.00022,2]
[423533724,1780199446000,-286.0,0.00022,2]
[423533744,1780199446000,-1264.08,0.00022691,2]
[423533729,1780199446000,-472.0,0.00022,2]
[423533731,1780199446000,-159.2550887,0.00022,2]
[423533743,1780199446000,-285.1,0.00022466,2]
[423533741,1780199446000,-500.0,0.00022419,2]
[423533742,1780199446000,-2586.85809042,0.00022441,2]
[423533745,1780199446000,-1384.67,0.00022691,2]
[423533746,1780199446000,-597.85,0.00022691,2]
[423533747,1780199446000,-480.87,0.000228,7]
[423533713,1780199446000,-161.0,0.00022,2]
[423533727,1780199446000,-154.0,0.00022,2]
[423533697,1780199446000,-250.0,0.00021918,2]
[423533680,1780199446000,-250.0,0.00021918,2]
[423533700,1780199446000,-250.0,0.00021918,2]
[423533679,1780199446000,-250.0,0.00021918,2]
[423533674,1780199446000,-500.0,0.00021766,2]
[423533673,1780199446000,-11959.05,0.00021755,2]
[423533675,1780199446000,-2494.55939288,0.00021893,2]
[423533678,1780199446000,-250.0,0.00021918,2]
[423533677,1780199446000,-250.0,0.00021918,2]
[423533676,1780199446000,-5000.0,0.00021918,2]
[423533681,1780199446000,-250.0,0.00021918,2]
[423533685,1780199446000,-250.0,0.00021918,2]
[423533694,1780199446000,-250.0,0.00021918,2]
[423533682,1780199446000,-250.0,0.00021918,2]
[423533684,1780199446000,-250.0,0.00021918,2]
[423533683,1780199446000,-250.0,0.00021918,2]
[423533687,1780199446000,-250.0,0.00021918,2]
[423533689,1780199446000,-250.0,0.00021918,2]
[423533692,1780199446000,-250.0,0.00021918,2]
[423533690,1780199446000,-250.0,0.00021918,2]
[423533691,1780199446000,-250.0,0.00021918,2]
[423533688,1780199446000,-250.0,0.00021918,2]
[423533693,1780199446000,-250.0,0.00021918,2]
[423533686,1780199446000,-250.0,0.00021918,2]
[423533738,1780199446000,-367.87008523,0.00022233,2]
[423533733,1780199446000,-2177.66,0.00022,2]
[423533740,1780199446000,-547.49,0.00022368,2]
[423533774,1780199446000,-1481.2378076,0.00023416,2]
[423533764,1780199446000,-472.0,0.00023,2]
[423533769,1780199446000,-2089.0,0.00023183,5]
[423533770,1780199446000,-2090.0,0.00023183,5]
[423533775,1780199446000,-500.0,0.00023479,2]
[423533777,1780199446000,-11959.05,0.0002351,2]
[423533778,1780199446000,-2781.82699784,0.00023537,2]
[423533779,1780199446000,-150.37708739,0.00023582,2]
[423533783,1780199446000,-500.0,0.00023808,2]
[423533787,1780199446000,-424.0,0.00024,2]
[423533786,1780199446000,-158.07026131,0.00024,2]
[423533776,1780199446000,-221.81,0.000235,14]
[423533781,1780199446000,-159.51487092,0.00023697,2]
[423533782,1780199446000,-500.0,0.00023785,2]
[423533785,1780199446000,-1536.04360648,0.00023964,2]
[423533784,1780199446000,-187.78006524,0.00023964,2]
[423533789,1780199446000,-161.0,0.00024,2]
[423533788,1780199446000,-189.0,0.00024,2]
[423533790,1780199446000,-669.0,0.00024,2]
[423533791,1780199446000,-265.0,0.00024,2]
[423533735,1780199446000,-437.0,0.00022,2]
[423533771,1780199446000,-17671.0218507,0.00023227,2]
[423533765,1780199446000,-437.0,0.00023,2]
[423533780,1780199446000,-1546.0,0.00023697,2]
[423533768,1780199446000,-518.22084681,0.00023158,2]
[423533739,1780199446000,-1045.5,0.00022353,2]
[423533767,1780199446000,-500.0,0.00023092,2]
[423533737,1780199446000,-197.0,0.00022,2]
[423533749,1780199446000,-207.76482817,0.00022868,2]
[423533759,1780199446000,-669.0,0.00023,2]
[423533760,1780199446000,-265.0,0.00023,2]
[423533748,1780199446000,-174.61919141,0.00022868,2]
[423533752,1780199446000,-857.73993207,0.00022868,2]
[423533751,1780199446000,-578.20924308,0.00022868,2]
[423533753,1780199446000,-2682.57183977,0.00022989,2]
[423533761,1780199446000,-190.0,0.00023,2]
[423533750,1780199446000,-1428.38747117,0.00022868,2]
[423533755,1780199446000,-156.0,0.00023,2]
[423533756,1780199446000,-424.0,0.00023,2]
[423533754,1780199446000,-2014.4318943,0.00023,2]
[423533758,1780199446000,-161.0,0.00023,2]
[423533763,1780199446000,-154.94064324,0.00023,2]
[423533773,1780199446000,-181.08010149,0.00023416,2]
[423533762,1780199446000,-286.0,0.00023,2]
[423533757,1780199446000,-189.0,0.00023,2]
[423533772,1780199446000,-1123.99999999,0.00023412,2]
[423533766,1780199446000,-197.0,0.00023,2]
[423533835,1780199447000,-1364.156986,0.00024997,2]
[423533832,1780199447000,-1364.156976,0.00024997,2]
[423533836,1780199447000,-751817.58763331,0.00025,2]
[423533837,1780199447000,-239.535013,0.00025,2]
[423533831,1780199447000,-2576.22745458,0.00024997,2]
[423533829,1780199447000,-2576.227454,0.00024997,2]
[423533830,1780199447000,-2576.227454,0.00024997,2]
[423533838,1780199447000,-428.0,0.00025,2]
[423533827,1780199447000,-221.043843,0.00024997,2]
[423533828,1780199447000,-2576.227454,0.00024997,2]
[423533834,1780199447000,-1364.156976,0.00024997,2]
[423533820,1780199447000,-2177.66,0.00024884,7]
[423533833,1780199447000,-1364.156976,0.00024997,2]
[423533839,1780199447000,-194.96743013,0.00025,2]
[423533848,1780199447000,-649.601898,0.00025,2]
[423533840,1780199447000,-165.34377798,0.00025,2]
[423533842,1780199447000,-265.57790151,0.00025,2]
[423533841,1780199447000,-684.81901892,0.00025,2]
[423533847,1780199447000,-649.601898,0.00025,2]
[423533843,1780199447000,-1047.90129968,0.00025,2]
[423533845,1780199447000,-151.0,0.00025,2]
[423533852,1780199447000,-518.696371,0.00025,2]
[423533849,1780199447000,-649.601906,0.00025,2]
[423533846,1780199447000,-649.601898,0.00025,2]
[423533851,1780199447000,-518.696371,0.00025,2]
[423533844,1780199447000,-151.0,0.00025,2]
[423533853,1780199447000,-518.696378,0.00025,2]
[423533823,1780199447000,-151.0,0.00024997,7]
[423533850,1780199447000,-518.696371,0.00025,2]
[423533821,1780199447000,-360.57871464,0.000249,2]
[423533794,1780199447000,-286.0,0.00024,2]
[423533819,1780199447000,-258.45760822,0.00024816,2]
[423533854,1780199447000,-205.32530215,0.00025,2]
[423533799,1780199447000,-2884.75459676,0.00024085,2]
[423533801,1780199447000,-500.0,0.00024211,2]
[423533800,1780199447000,-210.659953,0.000241,2]
[423533797,1780199447000,-197.0,0.00024,2]
[423533796,1780199447000,-437.0,0.00024,2]
[423533798,1780199447000,-500.0,0.0002401,2]
[423533793,1780199447000,-190.0,0.00024,2]
[423533795,1780199447000,-472.0,0.00024,2]
[423533792,1780199447000,-500.0,0.00024,2]
[423533804,1780199447000,-174.09425739,0.00024389,2]
[423533802,1780199447000,-251.58621118,0.0002428,2]
[423533808,1780199447000,-1592.87721992,0.00024512,2]
[423533803,1780199447000,-1045.5,0.00024324,2]
[423533809,1780199447000,-500.0,0.00024614,2]
[423533805,1780199447000,-500.0,0.00024413,2]
[423533806,1780199447000,-500.0,0.00024498,2]
[423533807,1780199447000,-194.72792766,0.00024512,2]
[423533812,1780199447000,-155.491187,0.00024658,2]
[423533813,1780199447000,-1000.0,0.00024658,2]
[423533810,1780199447000,-2991.49051684,0.00024633,2]
[423533815,1780199447000,-200.0,0.00024709,2]
[423533816,1780199447000,-151.0,0.00024792,7]
[423533826,1780199447000,-221.043836,0.00024997,2]
[423533817,1780199447000,-480.87,0.000248,7]
[423533825,1780199447000,-221.043836,0.00024997,2]
[423533818,1780199447000,-500.0,0.00024816,2]
[423533814,1780199447000,-665.43,0.000247,14]
[423533824,1780199447000,-221.043836,0.00024997,2]
[423533822,1780199447000,-151.0,0.00024997,7]
[423533856,1780199447000,-489.165112,0.00025,2]
[423533811,1780199447000,-643.16,0.00024658,2]
[423533860,1780199447000,-872.472464,0.00025,2]
[423533883,1780199447000,-1511.48,0.00025149,2]
[423533894,1780199447000,-1356.0,0.00025664,2]
[423533905,1780199447000,-3639.0,0.00025664,2]
[423533904,1780199447000,-761.243,0.00025664,2]
[423533893,1780199447000,-364.4,0.00025644,2]
[423533903,1780199447000,-150.0,0.00025664,2]
[423533895,1780199447000,-3550.0,0.00025664,2]
[423533920,1780199447000,-1026.868,0.000261,12]
[423533896,1780199447000,-928.0,0.00025664,2]
[423533900,1780199447000,-250.0,0.00025664,2]
[423533897,1780199447000,-1405.237,0.00025664,2]
[423533898,1780199447000,-527.0,0.00025664,2]
[423533899,1780199447000,-1226.0,0.00025664,2]
[423533902,1780199447000,-200.0,0.00025664,2]
[423533901,1780199447000,-220.0,0.00025664,2]
[423533906,1780199447000,-206.95,0.00025773,2]
[423533907,1780199447000,-2088.6138735,0.00025816,2]
[423533909,1780199447000,-2008.0,0.000259,2]
[423533908,1780199447000,-500.0,0.00025824,2]
[423533912,1780199447000,-4594.45505587,0.00026,2]
[423533916,1780199447000,-550.0,0.00026,2]
[423533913,1780199447000,-219.89801247,0.00026,2]
[423533910,1780199447000,-610.36690493,0.0002599,2]
[423533911,1780199447000,-500.0,0.0002599,2]
[423533917,1780199447000,-500.0,0.00026026,2]
[423533914,1780199447000,-500.0,0.00026,2]
[423533919,1780199447000,-159.80963633,0.000261,12]
[423533918,1780199447000,-180.0450472,0.00026075,2]
[423533857,1780199447000,-489.165112,0.00025,2]
[423533884,1780199447000,-500.0,0.00025219,2]
[423533882,1780199447000,-1511.48,0.00025149,2]
[423533915,1780199447000,-209.17060647,0.00026,3]
[423533891,1780199447000,-272.11624803,0.00025622,2]
[423533892,1780199447000,-500.0,0.00025622,2]
[423533858,1780199447000,-489.165112,0.00025,2]
[423533864,1780199447000,-475.0,0.00025,2]
[423533865,1780199447000,-439.2771525,0.00025,2]
[423533866,1780199447000,-500.0,0.00025018,2]
[423533855,1780199447000,-287.96941953,0.00025,2]
[423533859,1780199447000,-489.165114,0.00025,2]
[423533861,1780199447000,-872.472464,0.00025,2]
[423533862,1780199447000,-872.472464,0.00025,2]
[423533868,1780199447000,-1651.81367706,0.0002506,2]
[423533878,1780199447000,-1511.48,0.00025147,2]
[423533877,1780199447000,-1511.48,0.00025145,2]
[423533867,1780199447000,-226.08776067,0.0002506,2]
[423533879,1780199447000,-1511.48,0.00025147,2]
[423533870,1780199447000,-1546.0,0.00025081,3]
[423533863,1780199447000,-872.472469,0.00025,2]
[423533875,1780199447000,-151.0,0.00025081,3]
[423533871,1780199447000,-1546.0,0.00025081,3]
[423533885,1780199447000,-500.0,0.00025233,2]
[423533889,1780199447000,-1712.93078311,0.00025608,2]
[423533886,1780199447000,-11959.05,0.00025264,7]
[423533890,1780199447000,-206.55580968,0.00025622,2]
[423533888,1780199447000,-599.60298507,0.00025607,2]
[423533887,1780199447000,-500.0,0.00025421,2]
[423533881,1780199447000,-1511.49,0.00025149,2]
[423533874,1780199447000,-151.0,0.00025081,3]
[423533872,1780199447000,-1619.94599797,0.00025081,3]
[423533873,1780199447000,-300.0,0.00025081,3]
[423533869,1780199447000,-1546.0,0.00025081,3]
[423533880,1780199447000,-1511.48,0.00025147,2]
[423533876,1780199447000,-1511.48,0.00025145,2]
[423533962,1780199448000,-1045.5,0.00026296,2]
[423533965,1780199448000,-480.87,0.000264,7]
[423533957,1780199448000,-231.81231694,0.00026118,3]
[423533955,1780199448000,-1546.0,0.00026118,3]
[423533951,1780199448000,-1546.0,0.00026118,3]
[423533945,1780199448000,-1546.0,0.00026118,3]
[423533954,1780199448000,-1546.0,0.00026118,3]
[423533950,1780199448000,-1546.0,0.00026118,3]
[423533948,1780199448000,-1546.0,0.00026118,3]
[423533946,1780199448000,-1546.0,0.00026118,3]
[423533963,1780199448000,-163.22881692,0.00026296,2]
[423533960,1780199448000,-1000.0,0.00026244,15]
[423533956,1780199448000,-154.06251187,0.00026118,3]
[423533967,1780199448000,-157.0,0.00026462,2]